fUST/lending_fUST_20260107
["ID","MTS","AMOUNT","RATE_DAILY","PERIOD"]
[400708778,1767786641918,-2379.00179322,0.00026988,2]
[400708780,1767786641927,-167.0,0.00027,7]
[400708782,1767786641937,-594.0,0.00027,7]
[400708784,1767786641946,-1041.66666667,0.00027,7]
[400708786,1767786641956,-2524.82941417,0.0002704,2]
[400708788,1767786641965,-7197.7705983,0.00027045,2]
[400708790,1767786641975,-2100.0,0.00027071,7]
[400708792,1767786641984,-2618.2481025,0.00027095,2]
[400708794,1767786641993,-1646.0,0.000271,7]
[400708796,1767786642003,-25963.54,0.000271,2]
[400708798,1767786642011,-500.0,0.00027124,2]
[400708800,1767786642021,-500.0,0.00027124,2]
[400708802,1767786642030,-261.88445837,0.00027124,2]
[400708804,1767786642039,-500.0,0.00027124,2]
[400708806,1767786642048,-500.0,0.00027124,2]
[400708808,1767786642058,-500.0,0.00027124,2]
[400708810,1767786642067,-603.89498635,0.00027124,2]
[400708812,1767786642076,-209.63078805,0.00027124,2]
[400708814,1767786642086,-210.83487892,0.00027124,2]
[400708816,1767786642095,-500.0,0.00027124,2]
[400708818,1767786642105,-2715.12328229,0.0002715,2]
[400708820,1767786642114,-2100.0,0.00027161,7]
[400708822,1767786642123,-2815.58284374,0.00027205,2]
[400708824,1767786642132,-500.0,0.00027214,7]
[400708827,1767786642144,-31110.0,0.00027258,2]
[400708829,1767786642153,-2919.75940895,0.0002726,2]
[400708830,1767786642163,-595.12568369,0.00027261,2]
[400708832,1767786642172,-500.0,0.00027261,2]
[400708834,1767786642184,-500.0,0.00027261,2]
[400708836,1767786642194,-500.0,0.00027261,2]
[400708838,1767786642203,-500.0,0.00027261,2]
[400708840,1767786642211,-500.0,0.00027261,2]
[400708842,1767786642221,-259.14783661,0.00027261,2]
[400708844,1767786642231,-3225.1559368,0.00027297,2]
[400708846,1767786642241,-282.6,0.000273,2]
[400708848,1767786642251,-3027.79050709,0.00027315,2]
[400708850,1767786642261,-191.37491647,0.0002734,15]
[400708852,1767786642270,-3139.81875585,0.0002737,2]
[400708854,1767786642279,-2379.00179322,0.00027391,2]
[400708856,1767786642288,-276.07693905,0.00027397,2]
[400708858,1767786642297,-500.0,0.00027397,2]
[400708860,1767786642307,-500.0,0.00027397,2]
[400708862,1767786642316,-500.0,0.00027397,2]
[400708864,1767786642325,-459.12,0.00027397,2]
[400708866,1767786642335,-288.59747016,0.00027397,2]
[400708868,1767786642344,-3333.0958472,0.00027397,2]
[400708870,1767786642354,-500.0,0.00027397,2]
[400708872,1767786642363,-500.0,0.00027397,2]
[400708874,1767786642372,-500.0,0.00027397,2]
[400708876,1767786642382,-500.0,0.00027397,2]
[400708878,1767786642391,-327.48874112,0.00027397,2]
[400708880,1767786642401,-500.0,0.00027397,2]
[400708882,1767786642410,-500.0,0.00027397,2]
[400708884,1767786642419,-500.0,0.00027397,2]
[400708886,1767786642428,-500.0,0.00027397,2]
[400708888,1767786642437,-500.0,0.00027397,2]
[400708890,1767786642446,-500.0,0.00027397,2]
[400708892,1767786642456,-500.0,0.00027397,2]
[400708894,1767786642465,-557.84,0.00027397,2]
[400708896,1767786642474,-500.0,0.00027397,2]
[400708898,1767786642484,-500.0,0.00027397,2]
[400708900,1767786642493,-500.0,0.00027397,2]
[400708902,1767786642502,-500.0,0.00027397,2]
[400708903,1767786642511,-500.0,0.00027397,2]
[400708905,1767786642520,-500.0,0.00027397,2]
[400708907,1767786642529,-277.01965279,0.00027397,2]
[400708909,1767786642538,-500.0,0.00027397,2]
[400708911,1767786642547,-500.0,0.00027397,2]
[400708913,1767786642557,-492.19266173,0.00027397,2]
[400708915,1767786642567,-500.0,0.00027397,2]
[400708917,1767786642577,-500.0,0.00027397,2]
[400708919,1767786642586,-512.18746411,0.00027397,2]
[400708921,1767786642596,-500.0,0.00027397,2]
[400708923,1767786642607,-500.0,0.00027397,2]
[400708925,1767786642617,-500.0,0.00027397,2]
[400708927,1767786642627,-289.6846056,0.00027397,2]
[400708929,1767786642636,-355.05083788,0.00027397,2]
[400708931,1767786642646,-502.36418177,0.00027397,2]
[400708933,1767786642655,-500.0,0.00027397,2]
[400708935,1767786642665,-500.0,0.00027397,2]
[400708937,1767786642674,-500.0,0.00027397,2]
[400708939,1767786642684,-500.0,0.00027397,2]
[400708941,1767786642695,-502.44425475,0.00027397,2]
[400708943,1767786642706,-500.0,0.00027397,2]
[400708945,1767786642716,-554.6093971,0.00027397,2]
[400708947,1767786642725,-500.0,0.00027397,2]
[400708949,1767786642735,-500.0,0.00027397,2]
[400708952,1767786642744,-185.51376726,0.00027397,2]
[400708954,1767786642754,-500.0,0.00027397,2]
[400708957,1767786642763,-500.0,0.00027397,2]
[400708960,1767786642773,-500.0,0.00027397,2]
[400708962,1767786642782,-500.0,0.00027397,2]
[400708964,1767786642791,-500.0,0.00027397,2]
[400708966,1767786642800,-500.0,0.00027397,2]
[400708968,1767786642811,-500.0,0.00027397,2]
[400708970,1767786642821,-500.0,0.00027397,2]
[400708972,1767786642830,-500.0,0.00027397,2]
[400708974,1767786642840,-500.0,0.00027397,2]
[400708976,1767786642850,-244.48670359,0.00027397,2]
[400708978,1767786642860,-500.0,0.00027397,2]
[400708980,1767786642870,-500.0,0.00027397,2]
[400708982,1767786642878,-500.0,0.00027397,2]
[400708984,1767786642888,-500.0,0.00027397,2]
[400708986,1767786642897,-500.0,0.00027397,2]
[400708988,1767786642906,-500.0,0.00027397,2]
[400708990,1767786642916,-500.0,0.00027397,2]
[400708992,1767786642925,-500.0,0.00027397,2]
[400708994,1767786642935,-492.83964034,0.00027397,2]
[400708996,1767786642944,-472.0779569,0.00027397,2]
[400708998,1767786642954,-200.69574063,0.00027397,2]
[400709000,1767786642963,-500.0,0.00027397,2]
[400709002,1767786642973,-500.0,0.00027397,2]
[400709004,1767786642982,-572.76326727,0.00027397,2]
[400709006,1767786642991,-355.20033624,0.00027397,2]
[400709008,1767786643000,-507.72477345,0.00027397,2]
[400709009,1767786643010,-448.47784493,0.00027397,2]
[400709011,1767786643019,-500.0,0.00027397,2]
[400709013,1767786643028,-500.0,0.00027397,2]
[400709015,1767786643038,-500.0,0.00027397,2]
[400709018,1767786643048,-354.03723532,0.00027397,2]
[400709020,1767786643057,-500.0,0.00027397,2]
[400709021,1767786643067,-500.0,0.00027397,2]
[400709023,1767786643076,-348.69291317,0.00027397,2]
[400709025,1767786643085,-372.58005408,0.00027397,2]
[400709027,1767786643095,-506.15978028,0.00027397,2]
[400709029,1767786643105,-500.0,0.00027397,2]
[400709031,1767786643115,-204.4507679,0.00027397,2]
[400709033,1767786643124,-500.0,0.00027397,2]
[400709035,1767786643134,-500.0,0.00027397,2]
[400709037,1767786643144,-500.0,0.00027397,2]
[400709039,1767786643153,-1000.0,0.00027397,2]
[400709041,1767786643162,-500.0,0.00027397,2]
[400709043,1767786643171,-489.4825677,0.00027397,2]
[400709045,1767786643183,-500.0,0.00027397,2]
[400709047,1767786643194,-500.0,0.00027397,2]
[400709049,1767786643203,-500.0,0.00027397,2]
[400709051,1767786643213,-500.0,0.00027397,2]
[400709053,1767786643224,-500.0,0.00027397,2]
[400709055,1767786643233,-500.0,0.00027397,2]
[400709057,1767786643242,-500.0,0.00027397,2]
[400709059,1767786643251,-500.0,0.00027397,2]
[400709061,1767786643261,-266.0311333,0.00027397,2]
[400709063,1767786643271,-574.83927761,0.00027397,2]
[400709065,1767786643280,-546.87196648,0.00027397,2]
[400709067,1767786643291,-500.0,0.00027397,2]
[400709069,1767786643300,-500.0,0.00027397,2]
[400709071,1767786643310,-500.0,0.00027397,2]
[400709073,1767786643319,-500.0,0.00027397,2]
[400709075,1767786643328,-500.0,0.00027397,2]
[400709077,1767786643337,-500.0,0.00027397,2]
[400709079,1767786643346,-500.0,0.00027397,2]
[400709081,1767786643355,-500.0,0.00027397,2]
[400709083,1767786643365,-285.44153399,0.00027397,2]
[400709085,1767786643374,-500.0,0.00027397,2]
[400709087,1767786643383,-500.0,0.00027397,2]
[400709089,1767786643393,-425.02340228,0.00027397,2]
[400709092,1767786643402,-500.0,0.00027397,2]
[400709095,1767786643411,-536.59529358,0.00027397,2]
[400709098,1767786643421,-500.0,0.00027397,2]
[400709101,1767786643430,-500.0,0.00027397,2]
[400709104,1767786643439,-206.40672607,0.00027397,2]
[400709107,1767786643449,-500.0,0.00027397,2]
[400709110,1767786643458,-500.0,0.00027397,2]
[400709113,1767786643467,-500.0,0.00027397,2]
[400709115,1767786643476,-565.79664232,0.00027397,2]
[400709117,1767786643486,-275.89701196,0.00027397,2]
[400709119,1767786643496,-500.0,0.00027397,2]
[400709121,1767786643505,-500.0,0.00027397,2]
[400709123,1767786643514,-460.75990773,0.00027397,2]
[400709124,1767786643523,-220.85995408,0.00027397,2]
[400709126,1767786643532,-500.0,0.00027397,2]
[400709128,1767786643541,-500.0,0.00027397,2]
[400709130,1767786643550,-500.0,0.00027397,2]
[400709132,1767786643559,-500.0,0.00027397,2]
[400709134,1767786643569,-500.0,0.00027397,2]
[400709136,1767786643579,-500.0,0.00027397,2]
[400709138,1767786643588,-548.31395731,0.00027397,2]
[400709140,1767786643598,-283.23572878,0.00027397,2]
[400709141,1767786643607,-500.0,0.00027397,2]
[400709143,1767786643617,-500.0,0.00027397,2]
[400709145,1767786643627,-558.54756524,0.00027397,2]
[400709147,1767786643636,-500.0,0.00027397,2]
[400709149,1767786643645,-500.0,0.00027397,2]
[400709151,1767786643655,-500.0,0.00027397,2]
[400709153,1767786643664,-500.0,0.00027397,2]
[400709155,1767786643674,-500.0,0.00027397,2]
[400709157,1767786643683,-500.0,0.00027397,2]
[400709159,1767786643694,-504.72287872,0.00027397,2]
[400709161,1767786643704,-500.0,0.00027397,2]
[400709163,1767786643713,-496.70020353,0.00027397,2]
[400709165,1767786643722,-247.13704259,0.00027397,2]
[400709167,1767786643731,-500.0,0.00027397,2]
[400709169,1767786643740,-500.0,0.00027397,2]
[400709171,1767786643750,-913.08,0.00027397,2]
[400709173,1767786643759,-500.0,0.00027397,2]
[400709175,1767786643768,-500.0,0.00027397,2]
[400709177,1767786643777,-500.0,0.00027397,2]
[400709179,1767786643787,-231.38579924,0.00027397,2]
[400709181,1767786643796,-500.0,0.00027397,2]
[400709183,1767786643805,-500.0,0.00027397,2]
[400709185,1767786643814,-500.0,0.00027397,2]
[400709187,1767786643823,-565.35155134,0.00027397,2]
[400709189,1767786643832,-500.0,0.00027397,2]
[400709191,1767786643841,-533.03275713,0.00027397,2]
[400709193,1767786643850,-378.27229026,0.00027397,2]
[400709195,1767786643859,-500.0,0.00027397,2]
[400709196,1767786643868,-500.0,0.00027397,2]
[400709198,1767786643878,-500.0,0.00027397,2]
[400709200,1767786643887,-411.68091884,0.00027397,2]
[400709202,1767786643896,-500.0,0.00027397,2]
[400709216,1767786644030,-567.74134329,0.00027397,2]
[400709218,1767786644040,-571.86771589,0.00027397,2]
[400709220,1767786644049,-500.0,0.00027397,2]
[400709221,1767786644059,-500.0,0.00027397,2]
[400709223,1767786644068,-500.0,0.00027397,2]
[400709225,1767786644079,-302.57630642,0.00027397,2]
[400709227,1767786644089,-500.0,0.00027397,2]
[400709229,1767786644098,-323.54612143,0.00027397,2]
[400709231,1767786644107,-500.0,0.00027397,2]
[400709233,1767786644116,-482.03771904,0.00027397,2]
[400709235,1767786644125,-500.0,0.00027397,2]
[400709237,1767786644135,-500.0,0.00027397,2]
[400709238,1767786644144,-500.0,0.00027397,2]
[400709239,1767786644153,-421.02480079,0.00027397,2]
[400709240,1767786644162,-538.91545747,0.00027397,2]
[400709241,1767786644171,-509.97091486,0.00027397,2]
[400709242,1767786644184,-500.0,0.00027397,2]
[400709243,1767786644192,-500.0,0.00027397,2]
[400709244,1767786644201,-500.0,0.00027397,2]
[400709245,1767786644210,-500.0,0.00027397,2]
[400709246,1767786644219,-500.0,0.00027397,2]
[400709247,1767786644229,-567.9849075,0.00027397,2]
[400709248,1767786644238,-500.0,0.00027397,2]
[400709249,1767786644247,-487.15250721,0.00027397,2]
[400709250,1767786644258,-517.01871719,0.00027397,2]
[400709251,1767786644267,-500.0,0.00027397,2]
[400709252,1767786644276,-500.0,0.00027397,2]
[400709253,1767786644285,-500.0,0.00027397,2]
[400709254,1767786644294,-353.312555,0.00027397,2]
[400709255,1767786644303,-393.32959088,0.00027397,2]
[400709256,1767786644312,-500.0,0.00027397,2]
[400709258,1767786644322,-500.0,0.00027397,2]
[400709260,1767786644331,-500.0,0.00027397,2]
[400709262,1767786644340,-257.75144665,0.00027397,2]
[400709264,1767786644349,-500.0,0.00027397,2]
[400709265,1767786644358,-500.0,0.00027397,2]
[400709267,1767786644367,-368.505,0.00027397,16]
[400709269,1767786644377,-518.82361923,0.00027397,2]
[400709271,1767786644386,-500.0,0.00027397,2]
[400709273,1767786644396,-500.0,0.00027397,2]
[400709275,1767786644405,-457.91232299,0.00027397,2]
[400709277,1767786644414,-500.0,0.00027397,2]
[400709279,1767786644423,-500.0,0.00027397,2]
[400709281,1767786644433,-500.0,0.00027397,2]
[400709283,1767786644442,-500.0,0.00027397,2]
[400709285,1767786644451,-563.61353423,0.00027397,2]
[400709287,1767786644460,-500.0,0.00027397,2]
[400709289,1767786644469,-429.3256291,0.00027397,2]
[400709291,1767786644478,-274.78199584,0.00027397,2]
[400709293,1767786644487,-500.0,0.00027397,2]
[400709295,1767786644497,-500.0,0.00027397,2]
[400709297,1767786644506,-1000.0,0.00027397,2]
[400709299,1767786644515,-500.0,0.00027397,2]
[400709301,1767786644524,-461.56079082,0.00027397,2]
[400709303,1767786644533,-164.8466183,0.00027397,2]
[400709305,1767786644542,-500.0,0.00027397,2]
[400709307,1767786644551,-397.00088279,0.00027397,2]
[400709309,1767786644560,-500.0,0.00027397,2]
[400709311,1767786644569,-500.0,0.00027397,2]
[400709313,1767786644578,-480.41975781,0.00027397,2]
[400709314,1767786644587,-296.57482557,0.00027397,2]
[400709316,1767786644597,-500.0,0.00027397,2]
[400709318,1767786644606,-566.66989012,0.00027397,2]
[400709320,1767786644616,-500.0,0.00027397,2]
[400709322,1767786644624,-565.76829321,0.00027397,2]
[400709324,1767786644634,-500.0,0.00027397,2]
[400709326,1767786644643,-500.0,0.00027397,2]
[400709328,1767786644652,-185.72944567,0.00027397,2]
[400709330,1767786644661,-459.71283558,0.00027397,2]
[400709332,1767786644670,-500.0,0.00027397,2]
[400709334,1767786644680,-500.0,0.00027397,2]
[400709336,1767786644690,-500.0,0.00027397,2]
[400709338,1767786644699,-500.0,0.00027397,2]
[400709340,1767786644709,-500.0,0.00027397,2]
[400709342,1767786644718,-500.0,0.00027397,2]
[400709344,1767786644727,-509.25652376,0.00027397,2]
[400709346,1767786644736,-318.72988081,0.00027397,2]
[400709348,1767786644745,-191.0,0.00027397,2]
[400709350,1767786644754,-500.0,0.00027397,2]
[400709352,1767786644763,-500.0,0.00027397,2]
[400709354,1767786644772,-500.0,0.00027397,2]
[400709355,1767786644788,-500.0,0.00027397,2]
[400709357,1767786644797,-513.83486769,0.00027397,2]
[400709359,1767786644806,-397.14508349,0.00027397,2]
[400709361,1767786644815,-248.88132045,0.00027397,2]
[400709363,1767786644824,-500.0,0.00027397,2]
[400709365,1767786644834,-500.0,0.00027397,2]
[400709367,1767786644844,-500.0,0.00027397,2]
[400709369,1767786644853,-500.0,0.00027397,2]
[400709371,1767786644863,-509.29429867,0.00027397,2]
[400709373,1767786644872,-218.86382134,0.00027397,2]
[400709375,1767786644882,-500.0,0.00027397,2]
[400709377,1767786644892,-336.430075,0.00027397,2]
[400709379,1767786644901,-287.99941463,0.00027397,2]
[400709381,1767786644911,-500.0,0.00027397,2]
[400709383,1767786644920,-500.0,0.00027397,2]
[400709385,1767786644930,-500.0,0.00027397,2]
[400709387,1767786644940,-500.0,0.00027397,2]
[400709389,1767786644949,-271.44586454,0.00027397,2]
[400709391,1767786644958,-500.0,0.00027397,2]
[400709393,1767786644967,-467.04427797,0.00027397,2]
[400709395,1767786644976,-369.84563094,0.00027397,2]
[400709397,1767786644986,-756.53,0.00027397,2]
[400709399,1767786644996,-195.03199849,0.00027397,2]
[400709401,1767786645005,-500.0,0.00027397,2]
[400709403,1767786645015,-500.0,0.00027397,2]
[400709405,1767786645024,-500.0,0.00027397,2]
[400709407,1767786645034,-500.0,0.00027397,2]
[400709409,1767786645045,-266.46290101,0.00027397,2]
[400709411,1767786645054,-500.0,0.00027397,2]
[400709413,1767786645063,-500.0,0.00027397,2]
[400709415,1767786645072,-601.36,0.00027397,2]
[400709417,1767786645082,-500.0,0.00027397,2]
[400709419,1767786645091,-500.0,0.00027397,2]
[400709421,1767786645101,-221.6668596,0.00027397,2]
[400709423,1767786645110,-200.0,0.00027397,2]
[400709425,1767786645119,-500.0,0.00027397,2]
[400709426,1767786645128,-500.0,0.00027397,2]
[400709428,1767786645138,-399.37825281,0.00027397,2]
[400709430,1767786645147,-248.43549286,0.00027397,2]
[400709432,1767786645156,-471.39829619,0.00027397,2]
[400709434,1767786645165,-500.0,0.00027397,2]
[400709436,1767786645174,-500.0,0.00027397,2]
[400709438,1767786645187,-593.0958547,0.00027397,2]
[400709440,1767786645196,-500.0,0.00027397,2]
[400709442,1767786645205,-330.48636808,0.00027397,2]
[400709444,1767786645214,-500.0,0.00027397,2]
[400709446,1767786645225,-500.0,0.00027397,2]
[400709448,1767786645234,-500.0,0.00027397,2]
[400709450,1767786645244,-300.51321961,0.00027397,2]
[400709452,1767786645254,-500.0,0.00027397,2]
[400709454,1767786645267,-484.89464713,0.00027397,2]
[400709456,1767786645277,-430.45190106,0.00027397,2]
[400709459,1767786645287,-523.60697497,0.00027397,2]
[400709460,1767786645298,-500.0,0.00027397,2]
[400709462,1767786645307,-269.29132722,0.00027397,2]
[400709464,1767786645317,-500.0,0.00027397,2]
[400709466,1767786645326,-202.31547305,0.00027397,2]
[400709468,1767786645335,-474.29098556,0.00027397,2]
[400709470,1767786645344,-500.0,0.00027397,2]
[400709472,1767786645353,-500.0,0.00027397,2]
[400709474,1767786645363,-208.00138522,0.00027397,2]
[400709476,1767786645372,-477.66225869,0.00027397,2]
[400709478,1767786645382,-500.0,0.00027397,2]
[400709479,1767786645391,-285.61445838,0.00027397,2]
[400709481,1767786645402,-500.0,0.00027397,2]
[400709483,1767786645411,-500.0,0.00027397,2]
[400709485,1767786645420,-500.0,0.00027397,2]
[400709487,1767786645430,-500.0,0.00027397,2]
[400709489,1767786645440,-500.0,0.00027397,2]
[400709491,1767786645450,-500.0,0.00027397,2]
[400709493,1767786645459,-287.87151555,0.00027397,2]
[400709495,1767786645468,-454.06231089,0.00027397,2]
[400709496,1767786645477,-500.0,0.00027397,2]
[400709498,1767786645486,-500.0,0.00027397,2]
[400709500,1767786645496,-500.0,0.00027397,2]
[400709502,1767786645505,-258.82529302,0.00027397,2]
[400709504,1767786645514,-505.81393525,0.00027397,2]
[400709506,1767786645524,-500.0,0.00027397,2]
[400709508,1767786645533,-536.67131664,0.00027397,2]
[400709510,1767786645542,-315.73155468,0.00027397,2]
[400709512,1767786645552,-500.0,0.00027397,2]
[400709514,1767786645561,-500.0,0.00027397,2]
[400709516,1767786645570,-460.4,0.00027397,2]
[400709518,1767786645579,-453.49823966,0.00027397,2]
[400709520,1767786645588,-502.52642032,0.00027397,2]
[400709522,1767786645598,-500.68429147,0.00027397,2]
[400709524,1767786645607,-500.0,0.00027397,2]
[400709526,1767786645616,-500.0,0.00027397,2]
[400709528,1767786645626,-500.0,0.00027397,2]
[400709530,1767786645634,-500.0,0.00027397,2]
[400709532,1767786645644,-500.0,0.00027397,2]
[400709534,1767786645653,-523.62028016,0.00027397,2]
[400709536,1767786645662,-500.0,0.00027397,2]
[400709538,1767786645672,-500.0,0.00027397,2]
[400709540,1767786645682,-500.0,0.00027397,2]
[400709542,1767786645691,-500.0,0.00027397,2]
[400709544,1767786645701,-500.0,0.00027397,2]
[400709546,1767786645712,-221.99154029,0.00027397,2]
[400709548,1767786645722,-500.0,0.00027397,2]
[400709549,1767786645732,-500.0,0.00027397,2]
[400709551,1767786645741,-312.21609013,0.00027397,2]
[400709553,1767786645750,-500.0,0.00027397,2]
[400709555,1767786645760,-371.09090696,0.00027397,2]
[400709557,1767786645769,-500.0,0.00027397,2]
[400709559,1767786645778,-500.0,0.00027397,2]
[400709561,1767786645788,-161.89891017,0.00027397,2]
[400709563,1767786645797,-500.0,0.00027397,2]
[400709565,1767786645806,-554.99626701,0.00027397,2]
[400709567,1767786645815,-278.39946279,0.00027397,2]
[400709569,1767786645825,-836.74,0.00027397,2]
[400709571,1767786645834,-452.50526344,0.00027397,2]
[400709573,1767786645843,-500.0,0.00027397,2]
[400709575,1767786645853,-500.0,0.00027397,2]
[400709577,1767786645862,-500.0,0.00027397,2]
[400709579,1767786645871,-322.62449599,0.00027397,2]
[400709581,1767786645880,-500.0,0.00027397,2]
[400709583,1767786645890,-479.11138283,0.00027397,2]
[400709585,1767786645899,-513.07286312,0.00027397,2]
[400709587,1767786645910,-299.91358732,0.00027397,2]
[400709589,1767786645919,-500.0,0.00027397,2]
[400709591,1767786645929,-375.52520677,0.00027397,2]
[400709593,1767786645938,-500.0,0.00027397,2]
[400709594,1767786645947,-500.0,0.00027397,2]
[400709596,1767786645956,-500.0,0.00027397,2]
[400709598,1767786645965,-494.14749146,0.00027397,2]
[400709600,1767786645975,-500.0,0.00027397,2]
[400709602,1767786645984,-500.0,0.00027397,2]
[400709604,1767786645993,-500.0,0.00027397,2]
[400709606,1767786646002,-427.62515134,0.00027397,2]
[400709608,1767786646012,-500.0,0.00027397,2]
[400709610,1767786646021,-440.46983605,0.00027397,2]
[400709612,1767786646031,-500.0,0.00027397,2]
[400709614,1767786646040,-500.0,0.00027397,2]
[400709616,1767786646050,-500.0,0.00027397,2]
[400709618,1767786646060,-500.0,0.00027397,2]
[400709620,1767786646069,-500.0,0.00027397,2]
[400709622,1767786646078,-500.0,0.00027397,2]
[400709624,1767786646088,-500.0,0.00027397,2]
[400709625,1767786646097,-500.0,0.00027397,2]
[400709627,1767786646107,-552.48388047,0.00027397,2]
[400709629,1767786646117,-500.0,0.00027397,2]
[400709631,1767786646126,-575.86198463,0.00027397,2]
[400709633,1767786646135,-343.357016,0.00027397,2]
[400709635,1767786646144,-500.0,0.00027397,2]
[400709637,1767786646154,-500.0,0.00027397,2]
[400709639,1767786646164,-500.0,0.00027397,2]
[400709641,1767786646174,-500.0,0.00027397,2]
[400709643,1767786646187,-422.20830435,0.00027397,2]
[400709645,1767786646196,-500.0,0.00027397,2]
[400709647,1767786646205,-500.0,0.00027397,2]
[400709649,1767786646214,-500.0,0.00027397,2]
[400709651,1767786646224,-215.14710276,0.00027397,2]
[400709653,1767786646233,-500.0,0.00027397,2]
[400709655,1767786646242,-500.0,0.00027397,2]
[400709657,1767786646252,-333.045617,0.00027397,2]
[400709659,1767786646262,-500.0,0.00027397,2]
[400709661,1767786646272,-531.43503261,0.00027397,2]
[400709663,1767786646281,-500.0,0.00027397,2]
[400709665,1767786646292,-500.0,0.00027397,2]
[400709667,1767786646301,-500.0,0.00027397,2]
[400709669,1767786646310,-500.0,0.00027397,2]
[400709671,1767786646319,-3962.5,0.00027397,2]
[400709673,1767786646329,-500.0,0.00027397,2]
[400709674,1767786646338,-500.0,0.00027397,2]
[400709676,1767786646347,-582.84,0.00027397,2]
[400709678,1767786646357,-500.0,0.00027397,2]
[400709680,1767786646366,-500.0,0.00027397,2]
[400709682,1767786646375,-500.0,0.00027397,2]
[400709684,1767786646384,-500.0,0.00027397,2]
[400709686,1767786646393,-500.0,0.00027397,2]
[400709688,1767786646402,-277.779251,0.00027397,2]
[400709690,1767786646411,-500.0,0.00027397,2]
[400709692,1767786646421,-500.0,0.00027397,2]
[400709694,1767786646430,-500.0,0.00027397,2]
[400709696,1767786646439,-500.0,0.00027397,2]
[400709698,1767786646448,-500.0,0.00027397,2]
[400709700,1767786646457,-500.0,0.00027397,2]
[400709702,1767786646466,-500.0,0.00027397,2]
[400709704,1767786646475,-578.09418574,0.00027397,2]
[400709705,1767786646484,-500.0,0.00027397,2]
[400709707,1767786646494,-500.0,0.00027397,2]
[400709709,1767786646502,-423.19708612,0.00027397,2]
[400709711,1767786646512,-500.0,0.00027397,2]
[400709713,1767786646521,-500.0,0.00027397,2]
[400709715,1767786646530,-500.0,0.00027397,2]
[400709730,1767786646665,-500.0,0.00027397,2]
[400709732,1767786646675,-500.0,0.00027397,2]
[400709734,1767786646685,-500.0,0.00027397,2]
[400709736,1767786646695,-500.0,0.00027397,2]
[400709738,1767786646704,-500.0,0.00027397,2]
[400709740,1767786646713,-491.15587714,0.00027397,2]
[400709742,1767786646723,-502.76917188,0.00027397,2]
[400709744,1767786646732,-500.0,0.00027397,2]
[400709746,1767786646741,-500.0,0.00027397,2]
[400709748,1767786646751,-500.0,0.00027397,2]
[400709750,1767786646760,-500.0,0.00027397,2]
[400709752,1767786646769,-500.0,0.00027397,2]
[400709753,1767786646779,-500.0,0.00027397,2]
[400709755,1767786646789,-500.0,0.00027397,2]
[400709757,1767786646799,-500.0,0.00027397,2]
[400709759,1767786646808,-500.0,0.00027397,2]
[400709761,1767786646817,-500.0,0.00027397,2]
[400709763,1767786646827,-500.0,0.00027397,2]
[400709765,1767786646836,-725.03,0.00027397,2]
[400709767,1767786646845,-500.0,0.00027397,2]
[400709769,1767786646856,-308.74291557,0.00027397,2]
[400709771,1767786646866,-500.0,0.00027397,2]
[400709773,1767786646876,-500.0,0.00027397,2]
[400709775,1767786646885,-171.93674001,0.00027397,2]